bitfinex/quotes_ETHUSD_20260106
["timestamp","ask_amount","ask_price","bid_price","bid_amount"]
[1767677649646,0.95069417,3218.8,3218.2,0.002]
[1767677650022,4.0264796,3218.7,3218.2,0.002]
[1767677650224,0.91963523,3218.6,3218.2,0.002]
[1767677650552,0.95069417,3218.6,3218.2,0.002]
[1767677651944,4.05768029,3218.6,3218.2,0.002]
[1767677652122,0.95069417,3218.6,3218.2,0.002]
[1767677652447,0.03105894,3218.6,3218.2,0.002]
[1767677652853,3.13800036,3218.6,3218.2,0.002]
[1767677653857,0.91963523,3218.5,3218.1,1e-08]
[1767677654021,7.13390317,3218.4,3217.9,0.002]
[1767677654419,4.0267692,3218.4,3217.9,0.002]
[1767677654656,7.13390317,3218.4,3217.9,0.002]
[1767677654836,0.91963523,3218.2,3217.6,0.002]
[1767677656031,6.21484726,3218.1,3217.6,0.002]
[1767677656236,3.10742363,3218.1,3217.6,0.002]
[1767677658257,3.10742363,3218.1,3217.4,0.97132852]
[1767677658648,3.89220494,3218.1,3217.4,0.97132852]
[1767677658828,6.99962857,3218.1,3217.4,0.97132852]
[1767677659028,7.9192638,3218.1,3217.4,0.97132852]
[1767677659736,4.81184017,3218.1,3217.4,0.97132852]
[1767677659927,3.10733619,3218.2,3217.5,0.97132852]
[1767677659928,3.10735629,3218.2,3217.5,0.97132852]
[1767677660128,3.10735629,3218.2,3217.7,0.96932852]
[1767677662447,3.1072318,3218.3,3217.7,0.96932852]
[1767677663633,0.91963523,3218.2,3217.5,0.97132852]
[1767677663840,0.95069417,3218.1,3217.5,0.97132852]
[1767677664228,3.10752019,3218.0,3217.5,0.97132852]
[1767677664430,0.91963523,3217.9,3217.5,0.002]
[1767677664760,0.95069417,3217.9,3217.5,0.002]
[1767677665961,0.91963523,3217.9,3217.5,0.002]
[1767677666671,0.001,3218.0,3217.5,0.002]
[1767677667362,1.71577475,3218.0,3217.5,0.002]
[1767677669662,4.02725199,3217.9,3217.5,0.002]
[1767677674055,3.90368547,3218.0,3217.5,0.002]
[1767677681777,4.83997003,3218.0,3217.5,0.002]
[1767677689857,0.001,3217.7,3217.5,0.002]
[1767677690788,0.001,3217.7,3217.2,0.002]
[1767677690953,0.93728456,3217.7,3217.2,0.002]
[1767677691153,0.93728456,3217.7,3216.8,0.94819943]
[1767677691495,3.1080997,3217.4,3216.8,0.94819943]
[1767677691788,6.2161994,3217.4,3216.8,0.94819943]
[1767677692487,7.87705651,3217.4,3216.8,0.94819943]
[1767677694279,7.83623794,3217.4,3216.8,0.94819943]
[1767677695301,0.92021255,3217.3,3216.3,0.9180939]
[1767677695960,3.10829292,3217.2,3216.3,0.9180939]
[1767677700192,3.10829292,3217.2,3216.5,0.9180939]
[1767677700805,3.10822421,3217.3,3216.7,0.9180939]
[1767677701515,0.03105894,3217.2,3216.7,0.9180939]
[1767677701802,0.03105894,3217.2,3216.8,0.002]
[1767677702001,0.001,3217.1,3216.8,0.002]
[1767677702299,0.96555384,3217.0,3215.9,0.98288747]
[1767677702496,0.96555384,3217.0,3215.8,3.92359456]
[1767677702497,0.96555384,3217.0,3216.5,0.002]
[1767677702804,0.99661278,3217.0,3216.5,0.002]
[1767677703388,0.99661278,3217.0,3215.6,0.98288747]
[1767677703389,0.96555384,3216.6,3215.6,0.98288747]
[1767677703575,5.5358351,3216.9,3215.2,0.98488747]
[1767677703576,1.05879538,3216.4,3215.2,0.98488747]
[1767677703782,0.96555384,3216.3,3215.2,0.98488747]
[1767677704007,0.96555384,3216.3,3215.4,0.98288747]
[1767677704315,0.96555384,3216.1,3215.4,0.98288747]
[1767677704601,0.96555384,3216.1,3215.2,0.002]
[1767677704602,1.05879538,3216.1,3215.2,0.002]
[1767677704804,10.8558664,3216.2,3214.1,0.32798478]
[1767677704805,0.96555384,3215.2,3214.1,0.32798478]
[1767677704973,0.09324154,3215.4,3214.1,0.32798478]
[1767677704974,5.45134766,3215.4,3214.2,0.98288747]
[1767677705172,0.814,3215.4,3214.3,0.98288747]
[1767677705502,1.87279538,3215.4,3214.3,0.98288747]
[1767677705704,1.05879538,3215.2,3214.3,0.98288747]
[1767677705908,1.05879538,3215.0,3214.3,0.98288747]
[1767677706200,0.96555384,3214.8,3213.8,0.98288747]
[1767677706498,0.96555384,3214.8,3213.9,0.98288747]
[1767677706702,1.77955384,3215.0,3214.0,0.98288747]
[1767677706900,0.48899441,3214.9,3214.0,0.98288747]
[1767677707076,1.45454825,3214.9,3214.0,0.98288747]
[1767677707276,0.48899441,3214.9,3213.8,3.11153322]
[1767677707896,4.07591085,3215.1,3214.0,4.63734766]
[1767677708209,4.07591085,3215.1,3214.1,0.0311129]
[1767677708407,4.07591085,3215.1,3214.0,7.74871581]
[1767677708612,1.05879538,3215.0,3214.1,0.98288747]
[1767677710194,1.05879538,3214.8,3214.1,0.98288747]
[1767677710701,0.42624918,3214.8,3214.1,0.98288747]
[1767677710910,4.26297594,3215.3,3214.5,0.98288747]
[1767677711432,1.05879538,3215.2,3214.5,0.98288747]
[1767677712211,0.96555384,3215.2,3214.5,0.98288747]
[1767677712420,0.96555384,3215.7,3214.6,1.01399553]
[1767677712619,3.20983651,3215.6,3214.6,0.98288747]
[1767677712785,0.42064493,3215.5,3214.6,0.98288747]
[1767677713126,0.42064493,3215.5,3214.8,0.98288747]
[1767677713303,3.2097796,3215.6,3214.8,0.98288747]
[1767677714196,0.09993488,3215.6,3214.8,1.0139936]
[1767677714523,0.00669334,3215.6,3214.9,0.98288747]
[1767677715421,3.20253633,3216.2,3215.3,0.98288747]
[1767677715606,0.09324154,3216.0,3215.3,0.98288747]
[1767677715806,2.07961276,3216.1,3215.3,0.98288747]
[1767677716327,0.09324154,3216.0,3215.3,0.98288747]
[1767677716496,4.07510326,3215.9,3214.9,0.98288747]
[1767677716827,1.05879538,3215.6,3214.8,1.79788747]
[1767677717114,3.10946485,3216.0,3214.9,0.98288747]
[1767677717424,0.09324154,3215.9,3215.0,0.98288747]
[1767677718511,3.20286615,3215.9,3215.0,0.98288747]
[1767677718718,4.16841999,3215.9,3215.0,0.98288747]
[1767677719995,1.05879538,3215.9,3215.0,0.98288747]
[1767677720193,1.05879538,3215.9,3215.2,0.98288747]
[1767677720417,4.16836894,3215.9,3215.2,0.98288747]
[1767677723417,0.96555384,3215.9,3215.2,0.98288747]
[1767677723627,3.92448,3216.0,3215.2,0.98288747]
[1767677723826,0.09324154,3215.9,3215.2,0.98288747]
[1767677727021,0.09324154,3216.9,3215.2,0.98288747]
[1767677727237,1.05879538,3216.5,3215.4,0.98288747]
[1767677727403,0.96555384,3216.3,3215.4,0.98288747]
[1767677727591,0.03105894,3216.2,3215.4,0.98288747]
[1767677727821,0.001,3215.6,3215.4,0.98288747]
[1767677728130,0.95067807,3215.9,3215.3,0.002]
[1767677728426,0.95067807,3215.9,3215.3,0.98488747]
[1767677728946,0.96555384,3216.1,3215.3,0.98488747]
[1767677729223,1.69327798,3216.1,3215.3,0.98488747]
[1767677730139,3.10945273,3216.0,3215.3,0.98488747]
[1767677730335,0.96555384,3215.9,3215.3,0.002]
[1767677730539,1.05879538,3215.8,3215.3,0.002]
[1767677732333,0.93474122,3215.7,3215.3,0.002]
[1767677732543,3.10908449,3216.4,3215.4,0.96639069]
[1767677732706,4.04382571,3216.4,3215.6,0.96639069]
[1767677733114,3.10890414,3216.6,3215.7,0.96639069]
[1767677734013,6.21784303,3216.6,3215.7,0.96639069]
[1767677734414,6.21735886,3216.8,3215.7,0.96639069]
[1767677734625,0.80580158,3216.7,3215.7,0.96639069]
[1767677735241,0.71256004,3216.7,3215.7,0.96639069]
[1767677736234,0.80580158,3216.7,3215.7,0.96639069]
[1767677736610,0.71256004,3216.7,3215.8,0.96639069]
[1767677736816,3.1084927,3217.0,3216.0,0.96639069]
[1767677737333,0.09324154,3216.9,3216.0,0.96639069]
[1767677738234,1.02798276,3216.9,3216.0,0.96639069]
[1767677738542,1.02798276,3216.9,3215.5,4.89131673]
[1767677738543,0.93474122,3216.4,3215.5,4.89131673]
[1767677738738,1.02798276,3216.2,3215.3,0.002]
[1767677738958,0.03105894,3216.1,3215.3,0.96839069]
[1767677739246,0.90824154,3216.4,3215.3,0.96839069]
[1767677739613,3.10898572,3216.5,3215.4,0.96639069]
[1767677739810,3.10886983,3216.7,3215.9,0.96639069]
[1767677740517,0.001,3216.6,3215.9,0.96639069]
[1767677745335,0.001,3218.0,3217.2,0.96639069]
[1767677745563,3.10711779,3218.5,3216.8,0.96639069]
[1767677745564,0.59614962,3217.7,3216.8,0.96639069]
[1767677745859,0.59614962,3217.7,3217.0,0.96639069]
[1767677746156,0.03105894,3217.6,3217.1,0.815]
[1767677746330,0.59614962,3217.7,3217.1,0.815]
[1767677748448,0.59614962,3217.7,3217.1,1.78139069]
[1767677750661,0.96580016,3217.6,3217.2,0.815]
[1767677750956,0.59614962,3217.7,3217.2,0.815]
[1767677751161,0.93474122,3217.6,3217.2,0.815]
[1767677751468,1.02798276,3218.0,3217.2,0.815]
[1767677751759,1.34828593,3217.9,3217.2,0.815]
[1767677752367,0.93474122,3217.8,3217.2,0.815]
[1767677752730,0.001,3217.4,3217.2,0.815]
[1767677752930,0.93474122,3217.8,3217.2,0.815]
[1767677753168,0.31646502,3217.7,3217.2,0.815]
[1767677755446,0.31646502,3217.7,3215.9,3.10954293]
[1767677755650,0.31646502,3217.7,3217.1,3.10838803]
[1767677755939,0.31646502,3217.7,3217.2,0.814]
[1767677756133,0.31646502,3217.7,3217.2,3.92228051]
[1767677756542,0.31646502,3217.7,3217.2,0.814]
[1767677757267,0.31646502,3217.7,3217.2,4.86830171]
[1767677757636,0.95481811,3218.1,3217.2,3.92229058]
[1767677757839,0.95481811,3218.1,3217.2,3.10829058]
[1767677757840,0.95481811,3218.0,3217.2,3.10829058]
[1767677758045,0.95481811,3218.0,3217.3,0.814]
[1767677758848,0.95481811,3218.0,3217.4,4.63734766]
[1767677759172,0.95481811,3218.0,3217.5,0.814]
[1767677761239,0.95481811,3218.0,3217.1,0.94601113]
[1767677761487,0.95737784,3217.9,3217.2,0.814]
[1767677761884,0.95128713,3217.9,3217.2,0.814]
[1767677762588,0.92022819,3217.9,3217.2,1.82572967]
[1767677763040,0.92022819,3217.9,3217.2,4.93400393]
[1767677763239,0.92022819,3217.9,3217.2,1.82572967]
[1767677764573,0.001,3217.7,3217.2,1.82572967]
[1767677764770,0.001,3217.7,3217.2,2.78287204]
[1767677764993,0.9263189,3218.6,3217.6,1.01172967]
[1767677765275,0.9263189,3218.5,3217.7,0.814]
[1767677765879,1.01956044,3218.5,3217.7,0.814]
[1767677767960,0.9263189,3218.3,3217.7,0.814]
[1767677768360,1.33898834,3218.3,3217.7,0.814]
[1767677768870,0.9263189,3218.3,3217.7,0.814]
[1767677770274,4.03359083,3218.3,3217.7,0.814]
[1767677770794,0.9263189,3218.3,3217.7,0.814]
[1767677771508,0.9263189,3218.3,3217.5,1.01172967]
[1767677771509,4.12680152,3218.3,3217.5,1.01172967]
[1767677771689,0.95737784,3218.2,3217.6,0.814]
[1767677773467,0.9263189,3218.2,3217.6,0.814]
[1767677774476,0.03105894,3218.1,3217.6,0.814]
[1767677777000,3.13848744,3218.1,3217.6,0.814]
[1767677777195,0.03105894,3218.1,3217.6,0.814]
[1767677778690,0.9263189,3218.0,3217.3,1.01172967]
[1767677778889,0.95737784,3217.9,3217.3,0.814]
[1767677779091,0.9263189,3217.9,3217.3,0.814]
[1767677779295,0.95737784,3217.9,3217.3,0.814]
[1767677779479,1.72458707,3217.9,3217.3,0.814]
[1767677779683,1.69352813,3217.9,3217.3,0.814]
[1767677780871,4.80121953,3217.9,3217.3,0.814]
[1767677781782,0.9263189,3217.8,3217.1,1.01172967]
[1767677781981,0.9263189,3217.8,3217.3,0.814]
[1767677782306,0.9263189,3217.8,3217.1,1.01172967]
[1767677782509,0.9263189,3217.7,3216.0,1.32268396]
[1767677782717,0.9263189,3217.7,3216.3,3.10913654]
[1767677782718,1.01956044,3217.7,3216.3,3.10913654]
[1767677783003,0.9263189,3217.5,3216.4,0.31091365]
[1767677783310,0.9263189,3217.5,3216.5,0.814]
[1767677783802,1.01956044,3217.5,3216.5,0.814]
[1767677784587,0.9263189,3217.3,3216.1,3.10932646]
[1767677784906,0.9263189,3217.1,3216.5,0.814]
[1767677785605,0.9263189,3217.1,3216.2,3.1092291]
[1767677785776,0.9263189,3217.1,3216.5,0.814]
[1767677787109,4.03454137,3217.3,3216.5,1.82572967]
[1767677787286,0.9263189,3217.2,3216.5,1.82572967]
[1767677788918,0.9263189,3217.2,3216.5,1.82772967]
[1767677789214,4.03462898,3217.2,3216.5,1.82772967]
[1767677789827,0.9263189,3217.2,3216.5,0.002]
[1767677790108,0.9263189,3217.1,3216.5,0.002]
[1767677790417,0.9263189,3217.1,3216.5,1.01372967]
[1767677790617,0.9263189,3217.1,3216.5,0.002]
[1767677793293,4.0347142,3217.1,3216.5,0.002]
[1767677793814,0.9263189,3217.1,3216.5,0.002]
[1767677795114,4.05716941,3217.3,3216.5,1.01370421]
[1767677795413,4.05716941,3217.3,3216.5,1.0447939]
[1767677795616,4.78302137,3217.3,3216.5,0.98032171]
[1767677796212,0.94895832,3217.2,3216.5,0.98032171]
[1767677798518,4.05730631,3217.2,3216.5,0.98032171]
[1767677802021,0.001,3216.9,3216.5,0.98032171]
[1767677807394,0.001,3216.9,3216.3,1.01170421]
[1767677807721,0.001,3216.9,3216.4,1.50519617]
[1767677807889,0.001,3216.9,3216.2,1.82570421]
[1767677807890,0.94995832,3216.9,3216.2,1.82570421]
[1767677808093,0.94995832,3216.9,3216.2,1.01170421]
[1767677808319,0.98001726,3216.8,3216.1,0.816]
[1767677809052,0.98001726,3216.8,3216.1,0.002]
[1767677809053,0.94895832,3216.7,3216.1,0.002]
[1767677809399,0.94895832,3216.6,3216.1,0.002]
[1767677811093,0.94895832,3216.5,3216.1,0.002]
[1767677811592,1.04219986,3216.5,3216.1,0.002]
[1767677812500,0.94895832,3216.3,3216.1,0.002]
[1767677813006,0.94895832,3216.3,3215.4,1.01070219]
[1767677813203,0.94895832,3216.1,3215.4,1.01070219]
[1767677814330,0.94895832,3216.1,3216.0,0.002]
[1767677814624,1.35477389,3216.1,3216.0,0.002]
[1767677814806,0.40581557,3216.1,3216.0,0.002]
[1767677817423,4.05813873,3216.3,3216.0,0.002]
[1767677817730,1.05938614,3216.2,3215.4,0.98187123]
[1767677819615,0.09324154,3216.5,3215.5,0.98287727]
[1767677819829,4.16828322,3216.6,3215.5,0.98287727]
[1767677819994,4.89599611,3216.6,3215.7,0.98287727]
[1767677820199,3.83659524,3216.6,3215.7,0.98287727]
[1767677820412,4.89598138,3216.6,3215.7,0.98287727]
[1767677821943,4.89598138,3216.6,3215.4,3.11002282]
[1767677821944,0.99082643,3216.5,3215.4,1.03183308]
[1767677822242,0.99082643,3216.4,3215.4,1.03183308]
[1767677822546,0.99082643,3216.2,3215.4,1.03183308]
[1767677823248,0.99082643,3216.2,3215.5,1.03183308]
[1767677823452,1.88702253,3216.5,3215.5,1.03183308]
[1767677823631,1.08406797,3216.5,3215.5,1.03183308]
[1767677823823,0.99082643,3216.5,3215.5,1.03183308]
[1767677824450,4.09985038,3216.5,3215.5,1.03183308]
[1767677824655,0.99082643,3216.5,3215.5,1.03183308]
[1767677824822,0.99082643,3216.5,3215.7,1.03183308]
[1767677825655,4.09980483,3216.5,3215.7,1.03183308]
[1767677826253,0.99082643,3216.4,3215.7,1.03183308]
[1767677827139,0.001,3216.2,3215.7,1.03183308]
[1767677828874,0.0068329,3216.3,3215.7,1.03183308]
[1767677829229,0.99765933,3216.3,3215.7,1.03183308]
[1767677829432,0.99765933,3216.3,3215.5,1.03183308]
[1767677829744,0.99765933,3216.3,3215.6,0.56678684]
[1767677830748,4.10690665,3216.3,3215.6,0.56678684]
[1767677831655,0.99082643,3216.2,3215.3,1.03383308]
[1767677831856,0.99765933,3216.1,3215.3,1.03383308]
[1767677832362,0.99082643,3216.1,3215.4,4.17296592]
[1767677832562,4.19319556,3216.4,3215.6,1.03183308]
[1767677832946,4.09975834,3216.6,3215.7,1.0629305]
[1767677833147,4.09975834,3216.6,3215.7,1.03183308]
[1767677833651,0.99082643,3216.5,3215.7,1.03183308]
[1767677833848,0.99765933,3216.4,3215.4,1.03183308]
[1767677834052,0.99082643,3216.4,3215.4,1.03183308]
[1767677835046,0.99082643,3216.2,3215.4,1.03183308]
[1767677837162,4.10009583,3216.2,3215.4,1.03183308]
[1767677837464,0.99082643,3216.1,3215.4,1.03183308]
[1767677837960,0.99082643,3216.1,3215.4,1.68021992]
[1767677838565,0.99082643,3216.1,3215.5,1.03183308]
[1767677838766,0.99082643,3216.3,3215.5,1.03183308]
[1767677839376,4.10002721,3216.3,3215.5,1.03183308]
[1767677839547,0.001,3215.9,3215.5,1.03183308]
[1767677839872,4.10002721,3216.3,3215.6,1.03183308]
[1767677841771,0.99082643,3216.2,3215.6,1.03183308]
[1767677844557,4.10008924,3216.2,3215.6,1.03183308]
[1767677845359,0.99765933,3216.1,3215.4,0.64838684]
[1767677845786,3.10945273,3216.0,3215.4,0.64838684]
[1767677846384,4.10703378,3216.1,3215.4,0.64838684]
[1767677846995,0.99082643,3216.0,3215.3,1.03383308]
[1767677847297,0.99765933,3215.9,3215.3,0.002]
[1767677848101,0.99082643,3215.8,3215.3,0.002]
[1767677849699,0.99765933,3215.8,3215.3,0.002]
[1767677849871,0.99082643,3215.7,3215.3,0.002]
[1767677850578,4.1005766,3215.7,3215.3,0.002]
[1767677850993,0.99082643,3215.7,3215.3,0.002]
[1767677851598,0.99082643,3215.7,3215.4,0.002]
[1767677852194,4.10057009,3215.7,3215.4,0.002]
[1767677852399,0.99082643,3215.7,3215.4,0.002]
[1767677854612,1.05505437,3215.6,3215.0,0.002]
[1767677854989,1.14829591,3215.6,3215.0,0.002]
[1767677855317,1.05505437,3215.3,3215.0,0.002]
[1767677856114,0.09324154,3215.4,3215.0,0.002]
[1767677856115,1.05505437,3215.1,3215.0,0.002]
[1767677859707,3.11023539,3215.2,3215.0,0.002]
[1767677859905,3.92859242,3215.2,3215.0,0.002]
[1767677861927,4.97383931,3215.2,3214.8,0.002]
[1767677863829,4.97383931,3215.2,3215.0,0.002]
[1767677866423,1.8734114,3215.2,3215.0,0.002]
[1767677866622,3.92519932,3215.3,3215.0,0.002]
[1767677866623,0.815,3215.3,3215.0,0.002]
[1767677866923,3.92513969,3215.3,3215.0,0.002]
[1767677867399,3.11013969,3215.3,3215.0,0.002]
[1767677868231,1.05505437,3215.4,3215.0,0.002]
[1767677868232,4.16512319,3215.4,3215.0,0.002]
[1767677868901,1.14829591,3215.3,3215.0,0.002]
[1767677869103,1.97595101,3215.3,3215.0,0.002]
[1767677869515,1.06188727,3215.2,3215.0,0.002]
[1767677869923,1.05505437,3215.0,3214.1,0.002]
[1767677870136,1.05505437,3214.8,3214.1,0.002]
[1767677870520,1.05505437,3214.6,3214.1,0.002]
[1767677870922,1.05505437,3214.5,3214.1,0.002]
[1767677873041,1.14829591,3214.5,3213.7,0.00098992]
[1767677874239,1.05505437,3214.4,3213.7,0.00098992]
[1767677875431,1.05505437,3214.4,3213.7,1.05885578]
[1767677875849,0.001,3214.2,3213.7,1.05885578]
[1767677876044,0.001,3214.2,3213.8,1.05786586]
[1767677877832,0.001,3214.2,3213.8,1.08898167]
[1767677878034,1.06802466,3214.6,3213.9,1.05786586]
[1767677879333,1.06802466,3214.6,3213.8,0.03111581]
[1767677880852,1.06802466,3214.6,3213.8,1.08898167]
[1767677881449,1.07411303,3214.5,3213.8,1.08898167]
[1767677881654,1.16735457,3214.5,3213.8,1.05786586]
[1767677882029,1.16735457,3214.5,3213.7,0.88165567]
[1767677882254,1.16735457,3214.5,3213.7,0.00098992]
[1767677883036,1.07411303,3214.3,3213.7,0.00098992]
[1767677883355,1.16735457,3214.3,3213.7,0.00098992]
[1767677883555,1.07411303,3214.1,3213.7,0.00098992]
[1767677885436,3.21120911,3214.3,3213.7,0.00098992]
[1767677885636,4.92686031,3214.3,3213.7,0.00098992]
[1767677886766,1.07411303,3214.2,3213.7,0.00098992]
[1767677887142,1.07411303,3214.1,3213.7,0.00098992]
[1767677887339,1.07411303,3214.1,3212.7,0.42296018]
[1767677887340,1.07411303,3213.5,3212.7,0.42296018]
[1767677887651,1.07411303,3213.5,3212.7,0.98979727]
[1767677887857,1.07411303,3213.5,3212.8,1.8947726]
[1767677888067,1.07411303,3213.5,3212.9,0.98979727]
[1767677888437,1.07411303,3213.7,3213.0,1.02092083]
[1767677888640,1.07411303,3213.7,3213.0,0.98979727]
[1767677889246,4.27905202,3213.7,3213.0,0.98979727]
[1767677889451,5.0996069,3213.7,3213.0,0.98979727]
[1767677889665,5.0996069,3213.7,3212.8,0.87384984]
[1767677889666,1.07411303,3213.6,3212.8,0.87384984]
[1767677889868,1.07411303,3213.6,3212.8,1.86364711]
[1767677890249,1.07411303,3213.6,3212.8,0.98979727]
[1767677891049,0.91379642,3213.7,3212.9,0.98979727]
[1767677891249,0.09324154,3213.7,3212.9,0.98979727]
[1767677892361,4.27906214,3213.7,3212.9,0.98979727]
[1767677892672,1.16735457,3213.7,3212.9,0.98979727]
[1767677893547,4.27906312,3213.7,3212.9,0.98979727]
[1767677894048,1.07411303,3213.6,3212.9,0.98979727]
[1767677894646,1.07024841,3213.6,3212.9,0.98979727]
[1767677895493,1.07708131,3213.6,3212.9,0.98979727]
[1767677895674,1.07024841,3213.6,3212.9,0.98979727]
[1767677896069,0.09324154,3213.7,3212.9,0.98979727]
[1767677896272,3.20492841,3213.7,3212.9,0.98979727]
[1767677896458,4.27904144,3213.7,3212.9,0.98979727]
[1767677897073,1.16735457,3213.7,3212.9,0.98979727]
[1767677897968,4.27903378,3213.7,3212.9,0.98979727]
[1767677898876,3.11129087,3214.1,3213.0,0.98979727]
[1767677899051,0.09324154,3214.0,3213.0,0.98979727]
[1767677899784,3.11148448,3213.9,3213.0,0.98979727]
[1767677900377,3.11148448,3213.9,3213.1,0.002]
[1767677900559,0.09324154,3214.0,3213.2,0.98979727]
[1767677900886,4.88124553,3214.1,3213.2,0.98979727]
[1767677900887,0.001,3213.7,3213.2,0.98979727]
[1767677901678,0.001,3214.2,3213.7,0.98979727]
[1767677904495,4.18486242,3214.7,3214.0,0.98979727]
[1767677905487,1.07411303,3214.7,3214.0,0.98979727]
[1767677906482,5.09290982,3214.9,3214.0,0.98979727]
[1767677906695,0.815,3214.9,3214.1,0.98979727]
[1767677907214,3.92552741,3214.9,3214.1,0.98979727]
[1767677907517,0.815,3214.9,3214.1,0.98979727]
[1767677907817,0.815,3214.9,3214.2,0.98979727]
[1767677908125,0.09324154,3215.0,3214.2,0.98979727]
[1767677908791,4.18453343,3215.0,3214.2,0.98979727]
[1767677911529,0.98957196,3215.2,3214.2,0.98979727]
[1767677911733,0.815,3215.3,3214.3,1.06357323]
[1767677912034,0.815,3215.3,3214.5,1.06357323]
[1767677912338,1.80457196,3215.3,3214.5,1.06357323]
[1767677912494,0.98957196,3215.2,3214.5,1.06357323]
[1767677913610,0.001,3214.7,3214.5,1.06357323]
[1767677913916,0.98957196,3215.2,3214.5,4.17447494]
[1767677914123,0.98957196,3215.2,3214.5,1.83387786]
[1767677914364,0.98957196,3215.2,3214.1,0.49161577]
[1767677914365,0.99640486,3215.1,3214.1,0.49161577]
[1767677914652,0.99640486,3215.1,3214.3,0.815]
[1767677914653,0.98957196,3214.9,3214.3,0.815]
[1767677914850,0.99640486,3214.9,3214.3,0.815]
[1767677915835,0.98957196,3214.9,3214.3,0.815]
[1767677917849,0.98957196,3215.1,3214.3,1.87857323]
[1767677918043,0.98957196,3215.1,3214.3,2.37754357]
[1767677918547,6.31379229,3215.2,3213.3,1.06557323]
[1767677918548,0.98957196,3214.8,3213.3,1.06557323]
[1767677918847,0.98957196,3214.2,3213.3,1.06557323]
[1767677919049,0.98957196,3214.0,3213.3,0.002]
[1767677919830,0.98957196,3213.9,3213.3,0.002]
[1767677921252,3.11123533,3214.2,3213.3,1.06557323]
[1767677921947,4.10080729,3214.2,3213.3,1.06557323]
[1767677922149,0.815,3214.7,3213.4,1.06357323]
[1767677922350,0.98957196,3214.5,3213.4,1.09469291]
[1767677922524,0.98957196,3214.5,3213.4,1.06357323]
[1767677923554,0.98957196,3214.5,3213.6,1.06357323]
[1767677924253,4.10049373,3214.5,3213.6,1.06357323]
[1767677925643,1.0896464,3214.4,3213.4,1.06357323]
[1767677926149,0.98957196,3214.1,3213.6,0.002]
[1767677926323,0.98957196,3214.0,3213.6,0.002]
[1767677927732,0.98812654,3214.0,3213.6,0.002]
[1767677929754,4.09952747,3214.0,3213.6,0.002]
[1767677930651,0.98812654,3214.0,3213.6,0.002]
[1767677931057,4.09952566,3214.0,3213.6,0.002]
[1767677931662,0.98957196,3213.9,3213.6,0.002]
[1767677931960,0.98957196,3213.9,3213.3,0.002]
[1767677931961,1.0828135,3213.9,3213.3,0.002]
[1767677933078,1.0828135,3213.7,3213.3,0.002]
[1767677934862,0.98957196,3213.4,3213.3,0.002]
[1767677935031,4.10154059,3213.4,3213.3,0.002]
[1767677935235,4.10154059,3213.4,3212.5,1.022657]
[1767677935236,1.01119435,3213.3,3212.5,1.022657]
[1767677936660,1.01119435,3213.0,3212.5,0.002]
[1767677937074,4.12355664,3213.0,3212.5,0.002]
[1767677937371,1.01119435,3213.0,3212.5,0.002]
[1767677938741,1.01119435,3213.0,3212.8,0.002]
[1767677938943,1.01119435,3213.2,3212.8,0.002]
[1767677939144,1.33173244,3213.2,3212.8,0.002]
[1767677940166,4.44390725,3213.2,3212.8,0.002]
[1767677941254,1.04768998,3213.1,3212.8,0.002]
[1767677941451,1.04768998,3213.1,3212.2,0.815]
[1767677941661,1.04768998,3212.9,3212.2,0.815]
[1767677942467,1.04768998,3212.9,3212.0,0.002]
[1767677942672,1.04768998,3212.9,3212.1,13.05713857]
[1767677942972,1.04768998,3212.9,3212.1,3.11317753]
[1767677943141,1.04768998,3212.9,3212.0,0.002]
[1767677943340,1.04768998,3212.9,3212.0,0.817]
[1767677943956,1.04768998,3212.8,3212.0,0.817]
[1767677944995,1.04768998,3212.8,3212.1,2.430978]
[1767677945164,1.04768998,3212.8,3212.2,3.43791289]
[1767677945494,1.04768998,3212.8,3212.3,0.03113034]
[1767677945990,1.04768998,3213.3,3212.3,0.95301757]
[1767677946360,8.0865776,3213.5,3212.3,0.95301757]
[1767677947469,0.09324154,3213.4,3212.3,4.06603878]
[1767677947676,0.09324154,3213.4,3212.5,0.95301757]
[1767677948493,4.97463379,3213.5,3212.5,0.95301757]
[1767677950589,5.06787533,3213.5,3212.5,0.95301757]
[1767677950894,8.17981914,3213.5,3212.5,0.95301757]
[1767677951289,0.001,3213.1,3212.5,0.95301757]
[1767677951597,0.001,3213.1,3212.7,0.95301757]
[1767677959220,0.001,3213.1,3212.4,1.39210123]
[1767677959444,0.0078329,3213.1,3212.4,0.95301757]
[1767677959596,0.001,3213.1,3212.4,0.95301757]
[1767677960001,0.0078329,3213.1,3212.4,0.95301757]
[1767677960428,1.05552288,3213.1,3212.3,0.002]
[1767677960811,1.04868998,3213.1,3212.3,0.002]
[1767677961024,1.05452288,3213.0,3212.3,0.95501757]
[1767677961218,1.04768998,3213.0,3212.3,0.95501757]
[1767677961630,0.001,3213.1,3212.6,0.95301757]
[1767677962225,0.001,3213.1,3212.3,3.11502399]
[1767677962226,0.001,3213.7,3213.1,0.95301757]
[1767677962534,0.001,3213.7,3213.3,0.95301757]
[1767677967647,0.001,3214.8,3214.1,0.95301757]
[1767677967834,4.25100301,3215.4,3214.5,0.95301757]
[1767677968038,1.14093152,3215.2,3214.5,0.95301757]
[1767677968339,1.04768998,3215.2,3214.5,0.95301757]
[1767677968546,1.14093152,3215.2,3214.5,0.90301757]
[1767677969015,0.4251003,3215.3,3214.5,0.90301757]
[1767677969519,1.86268998,3215.5,3214.5,0.90301757]
[1767677969721,1.95593152,3215.5,3214.7,0.95301757]
[1767677970040,0.90824154,3215.5,3214.7,0.95301757]
[1767677970213,0.815,3215.5,3214.7,0.95301757]
[1767677970414,1.04768998,3215.7,3214.7,0.95301757]
[1767677971219,0.41573463,3215.6,3214.7,0.95301757]
[1767677971611,0.97533143,3215.5,3214.7,0.95301757]
[1767677972023,0.97533143,3215.8,3214.8,0.95796382]
[1767677972651,0.97533143,3215.8,3214.8,0.90796382]
[1767677974327,0.001,3215.9,3215.0,0.95796382]
[1767677974547,0.001,3215.9,3215.1,0.95796382]
[1767677975066,0.001,3215.9,3215.2,0.95796382]
[1767677975434,0.001,3215.9,3215.4,0.95796382]
[1767677976039,0.001,3215.6,3215.4,0.95796382]
[1767677976654,0.001,3215.6,3215.1,4.06827072]
[1767677977238,0.97633143,3216.9,3215.6,0.95796382]
[1767677977433,0.001,3216.9,3215.8,0.95796382]
[1767677978869,0.001,3216.9,3216.0,0.95796382]
[1767677979075,0.001,3216.9,3216.1,0.815]